{"text_format":"1","workbook":"xlsx","n_sheets":2,"sheets":["Лист1","Лист2"],"not_rendered":{"charts":0,"images":0,"macros":1,"external_links":0,"defined_names":0,"comments":0,"pivot_tables":0},"unopened":[],"bounds":{"document_bytes":16777216,"sheet_cells":100000,"rows_first":2000,"rows_last":500,"rows_between":2000,"halvings":0,"cell_chars":16384,"cell_head_chars":4096},"cells_cut":0,"cells_raw":0,"read":"whole","date_system":"1900"}

{"sheet":"Лист1","index":0,"n_rows":29,"n_cols":21,"rows_kept":29,"cut":false,"hidden":false,"merged":[[6,14,6,21],[6,2,6,5],[6,8,6,11],[7,18,7,19],[7,14,7,15],[7,16,7,17],[7,20,7,21]]}
[]
[]
[]
[]
[]
[]
[null,null,"Таблица_1",null,null,null,null,null,"Таблица_2",null,null,null,null,null,"Р Е З У Л Ь Т А Т"]
[null,null,1,2,3,4,null,null,1,2,3,4,null,null,1,null,2,null,3,null,4]
[null,1,11,21,31,41,null,1,11,21,31,41,null,1,11,null,22,null,31,null,41]
[null,2,12,22,32,42,null,2,12,22,32,42,null,2,12,null,23,null,32,null,42]
[null,3,13,23,33,43,null,3,13,23,33,43,null,3,13,null,24,null,33,null,43]
[null,4,14,24,34,44,null,4,14,24,34,44,null,4,14,null,25,null,34,null,44]
[null,5,15,25,35,45,null,5,15,25,35,45,null,5,15,null,26,null,35,null,45]
[]
[]
[null,null,"Sub ffformattt()"]
[null,null,"    u_1 = 15 'начальный столбец таблицы"]
[null,null,"    u_6 = 1 - (u_1 Mod 2)"]
[null,null,"    For Each u_2 In Range(\"o9:v13\")"]
[null,null,"        u_3 = u_2.Column"]
[null,null,"        u_4 = u_2.Row"]
[null,null,"        u_5 = Application.Round((u_3 - u_1 + 1) / 2, 0)"]
[null,null,"        u_7 = (u_3 + u_6) Mod 2"]
[null,null,"        u_8 = \"c9:f13\" '1-я таблица"]
[null,null,"        If u_7 = 0 Then u_8 = \"i9:l13\" '2-я таблица"]
[null,null,"        u_9 = Application.Index(Range(u_8), u_4 - 8, u_5).Interior.Color"]
[null,null,"        u_2.Interior.Color = u_9"]
[null,null,"    Next"]
[null,null,"End Sub"]

{"sheet":"Лист2","index":1,"n_rows":12,"n_cols":45,"rows_kept":12,"cut":false,"hidden":false,"merged":[[0,23,0,32],[0,35,0,44],[1,1,1,2],[0,1,0,20]]}
[null,"Таблица_Слияния",null,null,null,null,null,null,null,null,null,null,null,null,null,null,null,null,null,null,null,null,null,"Таблица_1",null,null,null,null,null,null,null,null,null,null,null,"Таблица_2"]
[null,1,null,{"$f":"B2+1","v":2},null,{"$f":"D2+1","v":3},null,{"$f":"F2+1","v":4},null,{"$f":"H2+1","v":5},null,{"$f":"J2+1","v":6},null,{"$f":"L2+1","v":7},null,{"$f":"N2+1","v":8},null,{"$f":"P2+1","v":9},null,{"$f":"R2+1","v":10},null,null,null,1,{"$f":"X2+1","v":2},{"$f":"Y2+1","v":3},4,5,6,7,8,9,10,null,null,1,{"$f":"AJ2+1","v":2},{"$f":"AK2+1","v":3},4,5,6,7,8,9,10]
[1,null,null,null,null,null,null,null,null,null,null,null,null,null,null,null,null,null,null,null,null,null,1,null,null,null,null,null,null,null,null,null,null,null,1]
[{"$f":"A3+1","v":2},null,null,null,null,null,null,null,null,null,null,null,null,null,null,null,null,null,null,null,null,null,{"$f":"W3+1","v":2},null,null,null,null,null,null,null,null,null,null,null,{"$f":"AI3+1","v":2}]
[{"$f":"A4+1","v":3},null,null,null,null,null,null,null,null,null,null,null,null,null,null,null,null,null,null,null,null,null,{"$f":"W4+1","v":3},null,null,null,null,null,null,null,null,null,null,null,{"$f":"AI4+1","v":3}]
[4,null,null,null,null,null,null,null,null,null,null,null,null,null,null,null,null,null,null,null,null,null,4,null,null,null,null,null,null,null,null,null,null,null,4]
[5,null,null,null,null,null,null,null,null,null,null,null,null,null,null,null,null,null,null,null,null,null,5,null,null,null,null,null,null,null,null,null,null,null,5]
[6,null,null,null,null,null,null,null,null,null,null,null,null,null,null,null,null,null,null,null,null,null,6,null,null,null,null,null,null,null,null,null,null,null,6]
[7,null,null,null,null,null,null,null,null,null,null,null,null,null,null,null,null,null,null,null,null,null,7,null,null,null,null,null,null,null,null,null,null,null,7]
[8,null,null,null,null,null,null,null,null,null,null,null,null,null,null,null,null,null,null,null,null,null,8,null,null,null,null,null,null,null,null,null,null,null,8]
[9,null,null,null,null,null,null,null,null,null,null,null,null,null,null,null,null,null,null,null,null,null,9,null,null,null,null,null,null,null,null,null,null,null,9]
[10,null,null,null,null,null,null,null,null,null,null,null,null,null,null,null,null,null,null,null,null,null,10,null,null,null,null,null,null,null,null,null,null,null,10]